bitfinex/quotes_ETHUSD_20220105
["timestamp","ask_amount","ask_price","bid_price","bid_amount"]
[1641412139337,0.01274125,3673.2,3671.4,0.55599746]
[1641412139338,0.00682108,3672.9,3671.4,0.55599746]
[1641412139536,0.01274125,3673.2,3672.2,1.26196646]
[1641412140037,0.00795793,3673.1,3672.2,1.26196646]
[1641412140238,5.793e-05,3673.1,3672.2,1.26196646]
[1641412140443,3.14874664,3674.3,3672.2,1.56196646]
[1641412140690,2.0,3676.3,3672.2,1.56196646]
[1641412140691,1.39753259,3676.3,3672.3,0.33987896]
[1641412140889,1.1584,3677.3,3672.3,0.33987896]
[1641412140890,0.01257944,3675.9,3672.8,0.01273902]
[1641412141094,0.01257944,3675.9,3674.2,0.26]
[1641412141095,3.163e-05,3674.8,3674.2,0.26]
[1641412141293,0.01257944,3675.9,3674.2,0.26]
[1641412141298,1.586e-05,3675.8,3674.3,0.328]
[1641412141495,2.0,3678.2,3674.4,7.5]
[1641412141496,2.03788901,3678.2,3674.4,7.5]
[1641412141695,0.01263905,3676.3,3676.2,8.14814632]
[1641412141894,0.01263905,3676.3,3675.0,0.28]
[1641412142093,3.14874664,3677.3,3675.1,5.442]
[1641412142292,0.01285637,3675.7,3675.1,5.44597896]
[1641412142492,0.01285637,3675.7,3675.2,0.00341054]
[1641412142694,0.01296533,3677.1,3675.2,0.00341054]
[1641412143000,0.00682108,3677.0,3675.2,0.00341054]
[1641412143194,2.3688,3679.4,3675.3,7.5]
[1641412143195,2.04088,3678.9,3675.3,7.5]
[1641412143394,2.03036135,3678.2,3675.9,0.01256424]
[1641412143597,2.03036135,3678.2,3676.1,0.99928532]
[1641412143598,1.75498295,3677.5,3676.1,0.99928532]
[1641412143895,0.0022737,3677.4,3676.2,0.00454739]
[1641412144196,0.0022737,3677.4,3674.6,0.01272871]
[1641412144197,0.00170527,3677.3,3675.4,0.00909477]
[1641412144454,0.01200894,3676.9,3675.4,0.00909477]
[1641412144656,0.01200894,3676.9,3673.1,3.7927]
[1641412144657,1.09025315,3675.5,3674.7,0.01307374]
[1641412145056,1.09025315,3675.5,3674.1,0.01648428]
[1641412145257,1.09025315,3675.5,3673.3,0.02103167]
[1641412145258,3.14874664,3675.4,3673.3,0.02103167]
[1641412145455,0.01239467,3674.5,3673.3,0.02103167]
[1641412145655,0.01239467,3674.5,3671.6,0.01278984]
[1641412145656,0.01239467,3674.5,3672.4,0.13819996]
[1641412145856,0.03979965,3674.6,3672.4,0.15062352]
[1641412146056,1.28065,3675.5,3672.4,0.15062352]
[1641412146057,3.14874664,3675.4,3672.5,0.02557905]
[1641412146260,3.14874664,3675.4,3672.7,0.01230443]
[1641412146459,3.14874664,3675.4,3673.8,0.01227596]
[1641412146460,0.01284129,3675.1,3673.8,0.01227596]
[1641412146660,0.01284129,3675.1,3672.8,0.02387378]
[1641412146961,0.01284129,3675.1,3672.4,0.13819996]
[1641412146962,7.5,3674.9,3672.4,0.13819996]
[1641412147161,0.01220481,3674.2,3673.3,2.0]
[1641412147359,0.01220481,3674.2,3671.4,1.0]
[1641412147360,7.5,3674.1,3672.8,0.00625265]
[1641412147561,7.5,3674.1,3670.0,0.001]
[1641412147562,0.01273493,3673.4,3670.0,0.01395529]
[1641412147762,0.01233986,3673.6,3671.5,0.00738951]
[1641412147961,0.54063386,3672.1,3671.5,0.00738951]
[1641412148187,0.01233986,3673.6,3671.5,0.00738951]
[1641412148190,0.00397896,3673.5,3671.5,0.00738951]
[1641412148387,0.3,3672.1,3671.5,0.00738951]
[1641412148791,3.14874664,3672.5,3671.3,5.73544437]
[1641412148989,3.14874664,3672.5,3671.4,0.00795793]
[1641412148990,1.3,3672.5,3671.4,0.00795793]
[1641412149189,1.0,3672.4,3671.4,0.00795793]
[1641412149392,1.68114,3672.4,3671.4,0.00795793]
[1641412149591,1.98114,3672.4,3671.4,0.00795793]
[1641412150191,5.12988664,3672.4,3671.4,0.00795793]
[1641412150393,0.98114,3672.4,3670.9,0.01080005]
[1641412150593,1.28114,3672.4,3670.1,0.01534744]
[1641412150794,3.14874664,3672.3,3670.1,0.01534744]
[1641412150992,0.98114,3672.4,3670.0,3.71450003]
[1641412150993,5.1615814,3672.4,3670.0,3.71450003]
[1641412151191,5.1615814,3672.4,3670.4,0.01204407]
[1641412151192,3.14874664,3672.4,3670.4,0.01204407]
[1641412151398,0.03116209,3672.5,3670.0,3.71450003]
[1641412151399,0.01250532,3672.3,3670.0,3.68401328]
[1641412151835,0.0119369,3672.2,3670.0,3.68401328]
[1641412152033,0.0119369,3672.2,3670.5,0.64053496]
[1641412152233,0.01136847,3672.1,3670.5,0.64053496]
[1641412152535,1.17321895,3672.9,3670.6,1.8371344]
[1641412152536,5e-08,3672.0,3670.6,1.8371344]
[1641412152836,5e-08,3672.0,3670.6,1.86349245]
[1641412153033,1.17321895,3672.9,3672.1,0.00699995]
[1641412153235,0.03619689,3673.3,3672.1,0.00699995]
[1641412153236,1.17321895,3673.2,3672.1,0.00699995]
[1641412153438,1.17321895,3673.2,3672.2,0.01016315]
[1641412153636,1.17321895,3673.2,3672.9,1.21767492]
[1641412154041,2.47329203,3673.8,3673.0,0.00561577]
[1641412154238,4.47094166,3674.1,3673.0,0.00561577]
[1641412154239,1.17321895,3674.1,3673.0,0.00561577]
[1641412154638,1.17321895,3674.1,3673.5,1.36129427]
[1641412154838,2.47329203,3674.6,3673.7,7.5]
[1641412155039,9.203e-05,3674.6,3673.7,7.5]
[1641412155240,5.32e-06,3674.2,3673.8,0.00106838]
[1641412155438,9.203e-05,3674.6,3673.8,0.00226838]
[1641412155439,1.059e-05,3674.5,3673.8,0.00226838]
[1641412155688,1.059e-05,3674.5,3673.8,0.00396838]
[1641412155893,0.11969914,3675.2,3673.9,7.5]
[1641412156094,0.11969914,3675.2,3674.3,0.58529896]
[1641412156294,0.11969914,3675.2,3674.0,0.00284212]
[1641412156295,5.27e-06,3674.8,3674.0,0.00284212]
[1641412156494,4.16843452,3675.7,3674.4,0.00226843]
[1641412156696,4.16843452,3675.7,3674.1,7.5]
[1641412156893,0.03001302,3675.8,3674.1,7.5]
[1641412156894,0.00170527,3675.1,3674.2,0.00341054]
[1641412157294,0.00113684,3675.0,3674.9,1.19509133]
[1641412157495,0.00113684,3675.0,3674.2,0.00341054]
[1641412158095,0.00113684,3675.0,3674.0,0.16742622]
[1641412158096,4.91200642,3674.9,3674.0,0.16742622]
[1641412158298,0.0129063,3674.1,3672.8,0.00295148]
[1641412158497,0.0129063,3674.1,3672.6,0.29114585]
[1641412158498,0.57108391,3673.1,3672.6,0.29114585]
[1641412158695,0.57108391,3673.1,3672.9,0.00738951]
[1641412159094,0.3,3673.2,3672.6,0.29114585]
[1641412159095,0.03719923,3673.2,3672.6,0.29114585]
[1641412159338,0.68078,3674.1,3672.7,0.00113685]
[1641412159538,1.0,3674.2,3672.7,0.00113685]
[1641412159539,0.00113685,3673.1,3672.7,0.00113685]
[1641412159737,1.0,3673.8,3671.7,0.01289569]
[1641412159738,1.0,3673.8,3672.2,0.00397896]
[1641412159939,3.14874664,3674.3,3672.3,1.40762835]
[1641412159940,0.00682108,3674.1,3672.3,1.40762835]
[1641412160140,0.00454739,3673.7,3672.6,0.01246162]
[1641412160338,0.03856284,3674.8,3672.3,1.40762835]
[1641412160339,0.00625266,3674.0,3672.4,0.00284212]
[1641412160542,0.00397896,3673.6,3672.4,0.00284212]
[1641412160741,0.00568423,3673.9,3672.4,0.00284212]
[1641412160945,0.00341054,3673.5,3672.4,0.00284212]
[1641412161146,0.00511581,3673.8,3672.4,0.00284212]
[1641412161361,0.00284212,3673.4,3672.4,0.00284212]
[1641412161542,0.00454739,3673.7,3672.2,0.00397896]
[1641412161742,0.00227369,3673.3,3672.2,0.00397896]
[1641412161948,0.00397896,3673.6,3672.2,0.00397896]
[1641412162145,0.0127382,3674.9,3672.2,0.00397896]
[1641412162343,1.36073,3675.9,3672.7,0.01234523]
[1641412162548,5.27e-06,3673.5,3673.4,0.60649278]
[1641412162742,5.27e-06,3673.5,3672.8,0.328]
[1641412162743,0.01307901,3675.8,3672.8,0.33197369]
[1641412162943,0.01478428,3676.1,3673.5,0.68015]
[1641412163184,0.01258078,3676.2,3673.7,0.01242015]
[1641412163185,0.01251059,3675.7,3673.7,0.01242015]
[1641412163385,0.01258078,3676.2,3672.9,0.10820527]
[1641412163386,0.01421586,3676.0,3672.9,0.10820527]
[1641412163587,3.14874664,3676.4,3673.9,1.26182291]
[1641412163588,0.01233292,3675.3,3673.9,1.26182291]
[1641412163786,3.14874664,3675.8,3673.9,1.26182291]
[1641412163986,0.00966847,3675.2,3673.9,1.26182291]
[1641412164188,0.01251059,3675.7,3673.9,1.26182291]
[1641412164385,0.01220157,3676.3,3673.9,1.26182291]
[1641412164386,0.00910005,3675.1,3674.4,3.69309856]
[1641412164588,0.01194216,3675.6,3674.8,0.99797099]
[1641412164785,0.00853162,3675.0,3674.8,0.99797099]
[1641412164986,1.93553154,3676.2,3674.8,0.99797099]
[1641412164987,0.01137374,3675.5,3674.8,0.99797099]
[1641412165188,6.32e-05,3674.9,3674.8,0.99797099]
[1641412165491,1.68251889,3676.8,3675.1,7.5]
[1641412165689,2.52377833,3677.1,3676.6,0.01211675]
[1641412165690,0.25217833,3677.1,3676.6,0.01211675]
[1641412165888,4.20629722,3677.9,3676.7,7.5]
[1641412165889,3.02076704,3677.3,3676.7,7.5]
[1641412166087,4.20629722,3677.9,3676.8,7.5]
[1641412166288,5.6083963,3678.4,3677.0,7.5]
[1641412166589,7.60994606,3679.6,3677.7,7.5]
[1641412166590,5.08669462,3679.0,3677.7,7.5]
[1641412166835,4.63589477,3679.6,3678.9,0.01200891]
[1641412166837,5.67215287,3679.6,3678.9,0.01200891]
[1641412167236,5.67215287,3679.6,3678.8,0.13819996]
[1641412167434,5.67215287,3679.6,3677.8,0.01496521]
[1641412167635,9.51167939,3679.5,3677.8,0.00284212]
[1641412167835,0.491222,3679.5,3677.9,0.0022737]
[1641412168134,0.491222,3679.5,3676.8,0.00852635]
[1641412168137,0.01243641,3678.7,3676.8,0.00852635]
[1641412168334,3.16118305,3678.7,3676.8,0.00852635]
[1641412168534,3.16118305,3678.7,3675.6,0.012444]
[1641412168535,1.33341985,3677.8,3676.1,1.74433375]
[1641412168736,3.64874664,3677.7,3676.1,1.74433375]
[1641412168939,7.5,3677.5,3676.1,1.74433375]
[1641412169137,0.01262952,3676.9,3676.1,1.74433375]
[1641412169339,3.14874664,3677.0,3676.2,9.421485]
[1641412169537,0.00341055,3676.8,3676.2,7.019442]
[1641412169741,0.68016,3676.7,3676.3,8.94022]
[1641412169937,0.71702788,3676.7,3674.0,0.01287734]
[1641412170140,0.68026,3676.5,3674.0,0.01287734]
[1641412170338,3.47674664,3676.4,3674.1,0.01193689]
[1641412170595,1.39207544,3675.5,3674.1,0.01193689]
[1641412170786,15.55223456,3675.4,3674.1,0.01193689]
[1641412170985,3.14874664,3675.3,3674.1,0.01193689]
[1641412171196,5.4813232,3675.3,3674.1,0.01193689]
[1641412171396,6.36162513,3674.2,3674.1,0.01193689]
[1641412171597,8.15513513,3674.2,3674.1,0.01193689]
[1641412171792,8.15513513,3674.2,3672.8,0.0126943]
[1641412171793,1.16417049,3673.3,3672.8,0.0126943]
[1641412171995,1.16417049,3673.3,3672.2,7.69383982]
[1641412171996,15.55223456,3673.2,3672.9,0.00397896]
[1641412172198,16.91383456,3673.2,3672.9,0.00397896]
[1641412172398,16.91383456,3673.2,3672.2,2.25100878]
[1641412172399,1.0,3673.1,3672.2,2.25100878]
[1641412172596,16.55337141,3673.1,3672.3,0.00341054]
[1641412172795,16.23300456,3672.8,3672.3,0.00341054]
[1641412173094,16.23300456,3672.8,3671.6,1.85288772]
[1641412173095,0.68077,3672.8,3671.6,1.85288772]
[1641412173296,0.00227369,3672.7,3672.4,1.25778312]
[1641412173496,0.00227369,3672.7,3672.1,0.01250981]
[1641412173695,0.00170527,3672.6,3672.1,0.01250981]
[1641412174097,3.685e-05,3672.5,3672.3,4.61800817]
[1641412174367,0.79351,3674.2,3672.5,0.01244864]
[1641412174569,0.79351,3674.2,3673.3,0.01286125]
[1641412174570,0.69351,3674.2,3673.3,0.01286125]
[1641412174768,0.00625265,3673.6,3672.5,0.108]
[1641412174972,5.265e-05,3673.6,3673.5,7.51275718]
[1641412175169,0.68988548,3674.2,3673.5,7.51275718]
[1641412175369,1.06265,3675.3,3673.5,7.51275718]
[1641412175370,1.06265,3675.3,3673.6,1.51771703]
[1641412175572,1.06265,3675.3,3674.8,0.12993835]
[1641412175772,1.06265,3675.3,3674.9,0.328]
[1641412175975,5.266e-05,3675.2,3674.9,0.328]
[1641412176276,1.139e-05,3675.8,3675.2,1.42299598]
[1641412176474,1.139e-05,3675.8,3675.3,0.328]
[1641412176679,1.6234465,3676.3,3675.8,0.67664811]
[1641412176879,1.6234465,3676.3,3675.9,0.328]
[1641412177076,4.739e-05,3676.0,3675.9,0.328]
[1641412177279,2.512693,3676.8,3675.9,0.328]
[1641412177483,9.3e-05,3676.8,3676.6,0.01214779]
[1641412177682,2.55398719,3677.6,3676.8,7.5]
[1641412177881,8.719e-05,3677.6,3677.5,7.51224117]
[1641412178083,8.24430677,3679.3,3677.6,7.5]
[1641412178280,4.21211415,3679.5,3678.3,0.01231614]
[1641412178481,4.21211415,3679.5,3678.4,0.328]
[1641412178884,4.21211415,3679.5,3677.6,1.0]
[1641412178885,0.51613493,3679.4,3677.6,1.0]
[1641412179086,1.57878493,3679.4,3677.1,0.01226842]
[1641412179286,1.57878493,3679.4,3676.2,2.71707]
[1641412179287,1.07533616,3679.2,3676.4,7.69009992]
[1641412179487,1.40133363,3677.7,3676.4,7.69009992]
[1641412179687,1.35988,3677.7,3676.4,7.69009992]
[1641412179892,0.64064903,3677.3,3676.4,7.69009992]
[1641412180094,0.68,3677.0,3675.4,2.97324081]
[1641412180289,0.68,3677.0,3675.0,0.01385667]
[1641412180290,0.0122469,3676.3,3675.0,0.00113685]
[1641412180488,0.0122469,3676.3,3675.5,0.00284212]
[1641412180690,0.0122469,3676.3,3675.1,18.503614]
[1641412180691,7.50113684,3676.2,3675.1,18.503614]
[1641412180891,7.50113684,3676.2,3674.9,5.87062816]
[1641412180892,0.66514693,3675.2,3674.9,5.4843387]
[1641412181091,0.66514693,3675.2,3674.8,7.705e-05]
[1641412181092,0.68053,3675.1,3674.8,7.705e-05]
[1641412181292,0.71986351,3675.1,3674.8,7.705e-05]
[1641412181490,0.71986351,3675.1,3673.9,9.10908325]
[1641412181692,0.71986351,3675.1,3673.7,0.00257367]
[1641412181693,0.3,3675.0,3674.9,22.39401]
[1641412181955,0.78391751,3675.0,3674.0,19.08275981]
[1641412182161,0.78391751,3675.0,3674.0,0.00511581]
[1641412182162,1.08574901,3674.7,3674.0,0.00511581]
[1641412182360,1.08574901,3674.7,3674.1,0.00454739]
[1641412182561,1.08574901,3674.7,3673.7,0.00257367]
[1641412182562,0.01292706,3674.2,3673.8,0.00625266]
[1641412182766,0.01292706,3674.2,3673.8,5.266e-05]
[1641412182963,0.00165261,3674.1,3673.8,5.266e-05]
[1641412183267,0.00165261,3674.1,3670.2,4.47094271]
[1641412183268,1.36194,3673.0,3671.9,9.05770958]
[1641412183462,1.36194,3673.0,3671.7,6.15774978]
[1641412183463,3.14874664,3672.9,3671.7,6.15774978]
[1641412183663,4.65,3672.1,3672.0,0.01023162]
[1641412183866,4.65,3672.1,3671.7,6.15774978]
[1641412183867,6.1,3672.0,3671.7,6.15774978]
[1641412184164,6.1,3672.0,3671.8,0.00113685]
[1641412184366,6.55036351,3671.8,3671.7,0.70964663]
[1641412184565,5.4412,3671.8,3671.7,0.70964663]
[1641412184765,5.4412,3671.8,3670.6,9.05770958]
[1641412184766,5.4412,3671.8,3670.6,0.01254462]
[1641412184969,5.4412,3671.8,3671.6,4.61910667]
[1641412185171,1.10191777,3672.9,3671.7,0.01204836]
[1641412185172,1.06265,3672.9,3671.7,0.01204836]
[1641412185580,0.00568424,3672.8,3671.7,0.01204836]
[1641412185886,0.00511581,3672.7,3671.8,0.328]
[1641412186084,0.00866,3674.1,3672.6,0.01228197]
[1641412186286,1.52898326,3674.6,3673.4,0.01287696]
[1641412186489,0.00738951,3674.0,3673.5,1.00622153]
[1641412186689,8.951e-05,3674.0,3673.9,7.56222936]
[1641412186888,1.66955279,3674.8,3674.2,0.66430865]
[1641412187090,1.52898326,3674.9,3674.7,0.0124758]
[1641412187091,3.605e-05,3674.9,3674.7,0.0124758]
[1641412187289,3.33910558,3675.4,3675.0,7.55]
[1641412187490,3.33910558,3675.4,3675.1,0.39599]
[1641412187689,3.33910558,3675.4,3675.3,1.10117066]
[1641412187892,3.33910558,3675.4,3674.3,0.244]
[1641412187893,3.14874664,3676.3,3674.2,0.328]
[1641412188088,26.14618293,3675.4,3674.2,0.328]
[1641412188289,0.00795793,3675.4,3674.2,0.328]
[1641412188491,0.0073895,3675.3,3674.2,0.328]
[1641412188888,0.5075653,3676.1,3674.9,1.0377283]
[1641412188889,0.00682108,3675.2,3674.9,1.0377283]
[1641412189348,0.00625266,3675.1,3674.9,1.0377283]
[1641412189535,0.00625266,3675.1,3674.9,0.8947468]
[1641412189736,8.423e-05,3675.0,3674.9,0.8947468]
[1641412189939,1.29313959,3676.5,3674.9,0.8947468]
[1641412189940,1.26240832,3676.5,3675.0,8.18423936]
[1641412190141,6.33399208,3678.7,3676.2,0.67963]
[1641412190142,3.33910558,3677.5,3676.2,0.67963]
[1641412190339,3.33910558,3677.5,3676.4,1.33966682]
[1641412190541,3.33910558,3677.5,3676.5,1.14573996]
[1641412190737,4.16865094,3678.0,3676.9,7.55]
[1641412190937,4.16865094,3678.0,3677.0,0.46619997]
[1641412191138,3.38834989,3679.5,3677.8,8.22975929]
[1641412191341,3.38834989,3679.5,3678.4,0.67937]
[1641412191545,3.38834989,3679.5,3678.4,6.27937]
[1641412191546,0.00341054,3678.5,3678.4,6.27937]
[1641412191740,0.00341054,3678.5,3678.4,2.05975517]
[1641412191941,0.00341054,3678.5,3677.1,0.33254738]
[1641412192340,0.00284212,3678.4,3677.2,0.00397896]
[1641412192741,0.0022737,3678.3,3677.2,0.00397896]
[1641412192941,3.80601193,3679.7,3678.5,1.23528766]
[1641412193186,0.01241563,3679.3,3677.2,0.00625266]
[1641412193385,0.00454739,3679.1,3677.2,0.00625266]
[1641412193585,0.00511581,3679.2,3677.2,0.00625266]
[1641412193786,0.00397896,3679.0,3677.2,0.00625266]
[1641412194087,0.00341054,3678.9,3677.3,0.54635418]
[1641412194284,0.00341054,3678.9,3678.0,1.07530838]
[1641412194485,0.00284211,3678.8,3678.0,1.07530838]
[1641412194686,0.00284211,3678.8,3678.1,0.32913685]
[1641412194886,7.369e-05,3678.7,3678.1,0.32913685]
[1641412195185,4.16865094,3680.4,3678.2,19.57136673]
[1641412195386,4.16865094,3680.4,3679.3,0.67919]
[1641412195591,0.04394476,3680.5,3679.7,0.06792]
[1641412195791,0.04394476,3680.5,3679.8,0.46619996]
[1641412195986,0.00914572,3681.3,3680.2,0.01294628]
[1641412196186,0.00914572,3681.3,3680.4,0.55638353]
[1641412196386,0.00511581,3681.2,3680.5,0.328]
[1641412196586,0.00511581,3681.2,3680.6,0.67895]
[1641412196832,5.61251813,3681.9,3680.6,0.67895]
[1641412196833,0.00454738,3681.1,3681.0,1.35010957]
[1641412197033,0.00454738,3681.1,3681.0,1.67810957]
[1641412197233,4.63079849,3682.1,3681.0,1.67810957]
[1641412197234,0.01234894,3682.0,3681.0,1.67810957]
[1641412197633,0.00397897,3681.8,3680.4,2.76564403]
[1641412198033,0.00341055,3681.7,3680.5,0.00341054]
[1641412198235,0.01282844,3681.2,3680.5,0.00341054]
[1641412198738,1.0,3680.9,3680.5,0.00341054]
[1641412199338,1.0,3680.9,3680.4,1.79726331]
[1641412199539,1.35893,3681.5,3680.6,2.342081]
[1641412199540,0.00170527,3680.8,3680.6,2.342081]
[1641412199739,0.00170527,3680.8,3680.5,2.342081]
[1641412199941,0.00113685,3680.7,3680.2,2.76564403]
[1641412200143,0.00113685,3680.7,3680.3,1.31289059]
[1641412200343,3.42157996,3681.6,3680.3,2.34321784]
[1641412200344,3.1755375,3681.5,3680.3,2.34321784]
[1641412200600,3.1755375,3681.5,3680.4,2.342081]
[1641412200790,3.1755375,3681.5,3680.4,8.1e-05]
[1641412200791,15.75511581,3681.4,3680.4,8.1e-05]
[1641412200991,0.01200972,3680.5,3677.1,0.104]
[1641412201196,0.01200972,3680.5,3677.0,0.01244623]
[1641412201197,1.35941,3680.2,3679.6,0.78302609]
[1641412201393,0.03086436,3678.5,3678.0,7.69770788]
[1641412201597,1.0,3678.5,3678.0,7.69770788]
[1641412201793,1.0,3679.0,3678.1,0.01250532]
[1641412201992,0.03460796,3679.1,3678.1,0.01250532]
[1641412202193,1.0,3679.4,3678.1,0.01250532]
[1641412202194,3.1755375,3679.3,3678.1,0.01250532]
[1641412202392,3.1755375,3679.3,3676.7,5.06220974]
[1641412202393,0.3,3678.9,3676.7,5.06220974]
[1641412202592,1.0,3677.4,3676.7,5.06220974]
[1641412202792,15.75,3678.8,3676.7,5.06220974]
[1641412202793,3.21234946,3678.7,3676.8,0.0073895]
[1641412203094,0.00397896,3678.8,3678.2,0.66472678]
[1641412203095,1.00284212,3678.6,3678.2,0.66472678]
[1641412203294,1.00284212,3678.6,3677.3,1.3084334]
[1641412203295,0.00284212,3678.6,3677.3,1.3084334]
[1641412203494,0.00227369,3678.5,3676.8,0.0073895]
[1641412203697,7.878,3678.4,3676.7,5.06220974]
[1641412203894,0.01257619,3677.7,3676.8,0.00341054]
[1641412204094,1.3607,3677.4,3676.8,1.054e-05]
[1641412204342,0.6361901,3676.9,3675.7,6.15088272]
[1641412204542,0.6361901,3676.9,3675.2,7.69770788]
[1641412204543,7.55,3675.9,3675.2,7.69770788]
[1641412204741,7.55,3675.9,3674.6,12.20437265]
[1641412204742,8.23044,3675.9,3674.6,8.78098184]
[1641412204944,7.55,3675.6,3674.0,2.99868272]
[1641412205142,5.2176375,3675.5,3675.3,19.260972]
[1641412205347,5.2176375,3675.5,3673.0,10.03702764]
[1641412205348,0.61748198,3674.5,3673.0,10.03702764]
[1641412205543,1.68092,3674.0,3673.0,11.25691267]
[1641412205742,1.68092,3674.0,3673.6,7.69167913]
[1641412205743,0.68092,3674.0,3673.6,7.69167913]
[1641412205942,3.1755375,3675.3,3673.6,7.64167913]
[1641412206143,0.01209959,3675.2,3673.7,0.00568423]
[1641412206346,0.01494171,3675.2,3673.7,0.00568423]
[1641412206643,1.0,3674.2,3673.7,0.00568423]
[1641412207044,0.68069,3674.0,3673.7,0.00568423]
[1641412207243,5.443,3673.9,3673.7,0.00568423]
[1641412207443,5.443,3673.9,3672.4,0.01307374]
[1641412207646,5.81799,3673.9,3672.4,0.01307374]
[1641412207845,3.1755375,3675.2,3672.5,0.59245738]
[1641412208089,1.26753461,3674.5,3673.1,7.55]
[1641412208487,1.26753461,3674.5,3673.2,0.01080005]
[1641412208688,0.00113684,3675.3,3673.4,7.55]
[1641412208890,3.684e-05,3675.3,3674.5,0.50671408]
[1641412209092,3.684e-05,3675.3,3674.6,0.328]
[1641412209293,3.684e-05,3675.3,3674.6,0.33194212]
[1641412209495,3.684e-05,3675.3,3674.7,0.0033737]
[1641412209694,1.26081152,3675.8,3674.7,0.0033737]
[1641412209891,1.26081152,3675.8,3673.9,3.69297165]
[1641412209892,0.68028,3675.9,3674.3,1.20680611]
[1641412210095,0.48079864,3675.5,3675.1,2.76902569]
[1641412210293,0.00454739,3676.1,3675.1,2.76902569]
[1641412210294,0.68036,3675.4,3675.1,2.76902569]
[1641412210492,0.03929271,3675.8,3675.1,2.76902569]
[1641412210691,0.00397897,3676.0,3675.1,2.76902569]
[1641412210892,66.8899437,3675.7,3675.1,2.7382776]
[1641412211093,0.68380054,3675.9,3674.9,1.82593938]
[1641412211298,0.01278613,3675.4,3674.9,1.82593938]
[1641412211497,1.0,3675.2,3674.9,0.70554465]
[1641412211697,1.0,3675.2,3674.6,2.7382776]
[1641412211698,0.01227542,3675.0,3674.6,2.7382776]
[1641412211946,7.55,3674.6,3673.8,4.61595502]
[1641412212247,7.55,3674.6,3671.7,9.23242912]
[1641412212248,1.36209,3674.2,3673.9,0.00625266]
[1641412212444,7.55,3673.6,3673.5,4.61630812]
[1641412212644,4.25,3673.4,3672.3,5.96457249]
[1641412212844,5.7714,3673.3,3672.3,0.51392249]
[1641412213044,5.7714,3673.3,3672.4,0.00852635]
[1641412213045,5.4434,3673.3,3672.4,0.00852635]
[1641412213244,4.6,3672.9,3672.3,0.51392249]
[1641412213444,56.64643157,3672.8,3671.8,9.19471603]
[1641412213644,0.68125,3672.3,3671.8,9.19471603]
[1641412213847,0.68125,3672.3,3669.6,2.97854044]
[1641412213848,0.68148,3670.8,3669.6,0.00352708]
[1641412214049,19.39173747,3670.7,3669.6,0.00352708]
[1641412214245,19.39173747,3670.7,3669.0,42.97378693]
[1641412214246,1.3631,3670.3,3669.7,47.831117]
[1641412214545,5.44624212,3670.2,3669.7,54.772847]
[1641412214744,5.54944212,3670.2,3668.6,9.19471603]
[1641412214946,0.00227369,3670.1,3668.6,9.19471603]
[1641412215144,0.00227369,3670.1,3668.9,0.00454739]
[1641412215145,5.4434,3670.0,3668.9,0.00454739]
[1641412215345,5.44510527,3670.0,3668.9,64.40715739]
[1641412215588,5.44510527,3670.0,3669.8,7.61224788]
[1641412215589,3.685e-05,3669.9,3669.8,7.61224788]
[1641412216392,3.685e-05,3669.9,3669.8,14.93004788]
[1641412216596,3.685e-05,3669.9,3669.8,12.19284188]
[1641412216793,3.685e-05,3669.9,3669.8,4.373804]
[1641412216997,3.685e-05,3669.9,3669.8,3.205036]
[1641412217195,5.44983685,3669.9,3669.0,0.00507896]
[1641412217394,5.77783685,3669.9,3669.0,0.00507896]
[1641412217594,6.45939685,3669.9,3669.1,2.705301]
[1641412217794,6.45939685,3669.9,3668.9,0.00564739]
[1641412217996,6.45939685,3669.9,3667.1,0.01271653]
[1641412217997,1.34991903,3669.6,3669.2,0.00394212]
[1641412218197,6.45939685,3669.9,3668.2,4.22873102]
[1641412218198,1.0,3669.4,3668.9,0.00564739]
[1641412218396,5.48771096,3669.5,3668.9,0.00564739]
[1641412218397,5.4498,3669.5,3668.9,0.00564739]
[1641412218598,0.32803685,3669.9,3668.9,0.00564739]
[1641412218599,0.68154,3669.8,3668.9,0.00564739]
[1641412218797,3.685e-05,3669.9,3668.9,0.00564739]
[1641412218798,5.4506,3669.7,3668.9,0.00564739]
[1641412218998,3.685e-05,3669.9,3668.9,0.00564739]
[1641412219370,3.685e-05,3669.9,3669.6,0.01238205]
[1641412219567,3.685e-05,3669.9,3668.9,0.00564739]
[1641412219765,3.685e-05,3669.9,3669.7,0.0011]
[1641412219966,3.685e-05,3669.9,3668.9,0.00564739]
[1641412220168,3.685e-05,3669.9,3669.8,7.6]
[1641412220567,1.25222133,3670.7,3669.8,7.6]
[1641412220568,1.20225818,3670.7,3669.8,7.6]
[1641412220770,3.33925687,3671.5,3670.2,0.01277738]
[1641412220966,7.896e-05,3670.6,3670.3,0.53724347]
[1641412221165,10.12950469,3673.7,3670.4,7.6]
[1641412221166,2.72169161,3672.5,3670.4,7.6]
[1641412221366,0.0128726,3673.7,3670.4,7.6]
[1641412221367,1.07937522,3672.8,3670.4,7.60105789]
[1641412221567,0.00170527,3671.7,3670.5,0.00511581]
[1641412221969,0.0128099,3672.1,3670.3,0.00625266]
[1641412221970,0.00113685,3671.6,3670.3,0.00625266]
[1641412222167,0.00113685,3671.6,3668.9,3.8565575]
[1641412222168,0.00113685,3671.6,3670.0,0.01202484]
[1641412222570,0.00113685,3671.6,3670.1,0.00738951]
[1641412222769,2.3,3671.5,3669.3,0.01243895]
[1641412223090,0.00738951,3671.4,3669.4,0.00397896]
[1641412223291,0.00738951,3671.4,3670.1,0.67901222]
[1641412223495,0.04356456,3671.9,3670.1,0.67901222]
[1641412223496,0.00682108,3671.3,3670.5,1.12481011]
[1641412223894,35.50906266,3671.2,3670.5,1.12481011]
[1641412224095,20.92925266,3671.2,3670.5,1.12481011]
[1641412224395,20.92925266,3671.2,3669.7,0.62224436]
[1641412224396,0.01289231,3671.0,3669.7,0.62224436]
[1641412224596,0.01289231,3671.0,3668.3,3.1755375]
[1641412224794,0.01289231,3671.0,3668.0,0.01227317]
[1641412224795,0.00852635,3670.9,3668.4,0.5]
[1641412224994,0.00852635,3670.9,3667.5,2.97541975]
[1641412224995,0.01247632,3670.2,3668.9,0.00284212]
[1641412225194,1.0,3670.0,3668.9,0.00284212]
[1641412225395,0.6817,3669.5,3668.9,0.00284212]
[1641412225595,5.4503,3669.4,3668.9,0.00284212]
[1641412225795,5.58849997,3669.4,3668.9,0.00284212]
[1641412225996,6.95700921,3669.1,3668.9,0.00284212]
[1641412226849,5.57062858,3669.1,3668.9,0.00284212]
[1641412227144,7.97016858,3669.1,3668.9,0.00284212]
[1641412227344,8.00869047,3669.1,3668.9,0.00284212]
[1641412227543,4.71964,3669.0,3668.9,0.00284212]
[1641412227946,6.10232229,3669.0,3668.9,0.00284212]
[1641412228148,9.45232229,3669.0,3668.9,0.00284212]
[1641412228349,7.3,3668.9,3666.6,3.8485]